Cogmind - Beta 16 @@@ ROGUE MODE // 2025.10.25 @ 08:39:09 Player: Moodge Result: Destroyed by G-34 Mercenary with Small Laser Performance ------------- Evolutions (1) 500 Regions Visited (2) 400 Robots Destroyed (16) 80 Value Destroyed (434) 434 Prototype IDs (0) 0 Alien Tech Used (0) 0 Bonus (0) 0 TOTAL SCORE: 1414 Bonus ------- None Cogmind --------- Core Integrity 0/400 Matter 119/300 Energy 100/100 System Corruption 4% Temperature Cool (6) Movement Core (350) Ox6 Location -9/Materials Parts ------- > --- POWER (2) -------- (None) > --- PROPULSION (2) --- (None) > --- UTILITY (3) ------ Large Storage Unit Signal Interpreter > --- WEAPON (2) ------- (None) > --- INVENTORY (15) --- (None) Peak State ------------ > --- POWER ------------ Light Ion Engine Light Nuclear Core > --- PROPULSION ------- Light Treads Light Treads > --- UTILITY ---------- Large Storage Unit Signal Interpreter Medium Armor Plating > --- WEAPON ----------- Particle Gun > --- INVENTORY -------- Improved Ion Engine Medium Armor Plating Medium Armor Plating Assault Rifle Light Assault Rifle Grenade Launcher Grenade Launcher [Rating: 13] Favorites ----------- Power Light Ion Engine Engine Light Ion Engine Power Core Light Nuclear Core Propulsion Light Treads Treads Light Treads Wheel Wheel Utility Signal Interpreter Storage Large Storage Unit Processor Signal Interpreter Protection Medium Armor Plating Weapon Light Assault Rifle Energy Gun Particle Gun Energy Cannon Beam Cannon Ballistic Gun Light Assault Rifle Launcher Grenade Launcher Build | -11 -10 -9 ------- Run | Yrd Mat Mat Slots Evolved 2 | . . 2 Power 1 | . . 1 Propulsion . | . . . Utility 1 | . . 1 Weapon . | . . . Parts Attached 26 | 7 9 10 Power 4 | 1 . 3 Engine 3 | 1 . 2 Core 1 | . . 1 Reactor . | . . . Propulsion 8 | 2 4 2 Treads 6 | . 4 2 Leg . | . . . Wheel 2 | 2 . . Hover . | . . . Flight . | . . . Utility 6 | 1 2 3 Device . | . . . Storage 2 | 1 1 . Processor 1 | . 1 . Hackware . | . . . Protection 3 | . . 3 Artifact . | . . . Weapon 8 | 3 3 2 Energy Gun 3 | 1 2 . Energy Cannon 1 | . 1 . Ballistic Gun 2 | 2 . . Ballistic Cannon . | . . . Launcher 2 | . . 2 Special Weapon . | . . . Impact Weapon . | . . . Slashing Weapon . | . . . Piercing Weapon . | . . . Special Melee Weapon . | . . . Unidentified Prototypes . | . . . Parts Lost 16 | . 5 11 Power 3 | . . 3 Propulsion 4 | . 2 2 Utility 3 | . . 3 Weapon 6 | . 3 3 Highest Loss Streak 11 | . 4 11 To Critical Strikes . | . . . Average Backups 7 | 5 9 4 Power . | . 1 . Propulsion 2 | 2 3 . Utility 1 | . 1 1 Weapon 2 | 1 3 2 Tool/Special . | . . . Unused Backups 2 | . 2 . Power . | . . . Propulsion 2 | . 2 . Utility . | . . . Weapon . | . . . Tool/Special . | . . . Average Slot Usage (%) 81 | . 84 77 Engine 12 | . 14 9 Core 3 | . . 9 Treads 18 | . 18 17 Wheel 6 | . 9 . Storage 12 | . 14 11 Processor 12 | . 13 11 Protection 3 | . . 9 Energy Gun 4 | . 3 6 Ballistic Gun 6 | . 9 1 Peak Build Rating 13 | 6 9 13 Average Rating 7 | 3 6 10 On Entrance 4 | . 5 8 Avg Prop Armor Cover (%) . | . . . Naked Turns . | . . . Heaviest Build 39 | 10 26 39 Greatest Support 40 | 20 40 40 Greatest Overweight (x) 12 | . 1 12 Average Overweight (x) . | . . . Largest Inventory Capacity 15 | 8 15 15 Average Capacity 14 | 6 14 15 Most Carried 13 | 7 13 9 Average Carried 7 | 5 9 4 Final Capacity 15 | 8 15 15 Final Carried 9 | 7 9 . Class Distribution -------------------- 100% | Mutant Dominant Class ---------------- Mutant | -10/Materials Mutant | -9/Materials Resources | -11 -10 -9 ----------- Run | Yrd Mat Mat Matter Collected 490 | 245 206 39 Remotely . | . . . Salvage Created 564 | . 308 256 Parts 21 | . 9 12 Haulers Intercepted . | . . . Recyclers Shooed 1 | . . 1 Parts Field Recycled . | . . . Retrieved Matter . | . . . Parts Self-Destructed . | . . . Prevented . | . . . Parts Restored . | . . . Kills | -11 -10 -9 ------- Run | Yrd Mat Mat Combat Hostiles Destroyed 11 | . 7 4 Guns 6 | . 4 2 Cannons 3 | . 3 . AOE 2 | . . 2 Classes Destroyed 5 | . 1 4 Worker 3 | . . 3 Mechanic 1 | . . 1 Watcher 1 | . . 1 Grunt 10 | . 7 3 Brawler 1 | . . 1 Best Kill Streak 9 | . 4 9 Combat Bots Only 4 | . 4 2 Max Kills in Single Turn 3 | . 1 3 Gunslinging . | . . . Exploded 1 | . . 1 Melee . | . . . Uniques/NPCs Destroyed . | . . . Combat | -11 -10 -9 -------- Run | Yrd Mat Mat Hostile Shots Fired 260 | . 116 144 Missed 66 | . 31 35 Hits 194 | . 85 109 Melee 3 | . . 3 Projectile 191 | . 85 106 Critical Strikes 8 | . 4 4 Damage Taken 2687 | . 1174 1513 Core 632 | . 229 403 Absorbed by Shields . | . . . Core Remaining (%) 54 | 100 8 . Volleys Fired 124 | . 85 39 Largest 1 | . 1 1 Hottest 65 | . 65 65 Shots Fired 124 | . 85 39 Gun 105 | . 71 34 Cannon 14 | . 14 . Launcher 5 | . . 5 Special . | . . . Kinetic 70 | . 52 18 Thermal 44 | . 28 16 Explosive 5 | . . 5 Electromagnetic 5 | . 5 . Robot Hit Streak 7 | . 7 5 Robot Miss Streak 6 | . 6 5 Penetration Max . | . . . Secondary Targets . | . . . Shots Hit Robots 80 | . 57 23 Core Hits 34 | . 11 23 Critical Kills . | . . . Critical Parts Destroyed 1 | . . 1 Critical Strikes 2 | . . 2 Burn 1 | . . 1 Destroy 1 | . . 1 Melee Attacks . | . . . Impact . | . . . Slashing . | . . . Piercing . | . . . Sneak Attacks . | . . . Combat Hostiles . | . . . Follow-up Attacks . | . . . Damage Inflicted 1082 | . 336 746 Guns 433 | . 177 256 Cannons 159 | . 159 . Explosions 490 | . . 490 Melee . | . . . Ramming . | . . . Kinetic 197 | . 92 105 Thermal 358 | . 207 151 Explosive 490 | . . 490 Electromagnetic 37 | . 37 . Impact . | . . . Slashing . | . . . Piercing . | . . . Highest Corruption 4 | . . 4 Average Corruption 4 | . . 4 Corruption Purged . | . . . Corruption Blocked . | . . . Effects 3 | . . 3 Message Errors 1 | . . 1 Matter Fused 2 | . . 2 Overload Shots . | . . . Overflow Damage 19 | . . 19 Projectiles . | . . . Explosions 19 | . . 19 Melee . | . . . Knockbacks . | . . . Impact . | . . . Kinetic . | . . . Secondary . | . . . Self-Inflicted Damage 116 | . . 116 Shots 3 | . . 3 Rammed . | . . . Targets Rammed . | . . . Kicked . | . . . Crushed . | . . . Highest Temperature 461 | . 461 410 Average Temperature 205 | . 209 201 Received Heat Transfer 1386 | . 741 645 Effects 12 | . 4 8 Shutdowns 4 | . 1 3 Energy Bleed 1 | . . 1 Interference 3 | . 2 1 Matter Decay 1 | . . 1 Short Circuit 2 | . . 2 Damage (minor) 1 | . 1 . Siege Activations . | . . . Martial Activations . | . . . Shielding Activations . | . . . Robots Disrupted . | . . . Combat Hostiles . | . . . Robots Corrupted . | . . . Combat Hostiles . | . . . Parts Fried . | . . . Impact Corruptions . | . . . Robots Melted . | . . . Combat Hostiles . | . . . Parts Melted 1 | . 1 . Heat Transferred 888 | . 444 444 Parts Sabotaged . | . . . Parts Stolen . | . . . Parts Stripped . | . . . Power Chain Reactions . | . . . Alert | -11 -10 -9 ------- Run | Yrd Mat Mat Maximum Alert Level . | . . . Low Security (%) 100 | 100 100 100 Level 1 . | . . . Level 2 . | . . . Level 3 . | . . . Level 4 . | . . . Level 5 . | . . . High Security . | . . . Max Security . | . . . Peak Influence 67 | . 60 67 Initial 5 | . . 5 Average 10 | . 11 11 Influence Increases 361 | . 204 157 Destroy 0b10 Robot/C 220 | . 140 80 Destroy 0b10 Robot/NC 25 | . . 25 Destroy Leader 42 | . 30 12 Successful Hack 19 | . 19 . Destroy Structure 10 | . . 10 Partial Spotted 15 | . 15 . Lose Combat Pursuer 30 | . . 30 Influence Decreases 361 | . 190 171 Entered New Map 9 | . . 9 Time Decay 195 | . 140 55 Lost Part 157 | . 50 107 Squads Dispatched 3 | . 2 1 Investigation . | . . . Extermination . | . . . Reinforcement 3 | . 2 1 Assault . | . . . Garrison . | . . . Intercept . | . . . Searches Triggered . | . . . Construction Impeded . | . . . Haulers Reinforced . | . . . Active Scanning Responses . | . . . Cargo Convoy Interrupts . | . . . Stealth | -11 -10 -9 --------- Run | Yrd Mat Mat Distress Signals 5 | . 1 4 Communications Jammed . | . . . Distress Signals . | . . . Times Spotted 31 | . 11 20 Peak Tracking Total 10 | . 5 10 Tactical Retreats 2 | . . 2 Traps | -11 -10 -9 ------- Run | Yrd Mat Mat Traps Triggered . | . . . Indirectly . | . . . Trap Hack Attempts . | . . . Triggered . | . . . Disarmed . | . . . Reprogrammed . | . . . Reused . | . . . Traps Extracted . | . . . Installed . | . . . Triggered . | . . . Machines | -11 -10 -9 ---------- Run | Yrd Mat Mat Machines Disabled . | . . . Max in Single Turn . | . . . Machines Repaired . | . . . Machines Dismantled . | . . . Machines Sabotaged . | . . . Overloaded Fab Kills . | . . . Hacking | -11 -10 -9 --------- Run | Yrd Mat Mat Machines Accessed 2 | . 2 . Terminals 2 | . 2 . Fabricators . | . . . Repair Stations . | . . . Recycling Units . | . . . Scanalyzers . | . . . Garrison Access . | . . . Total Hacks 3 | . 3 . Successful 2 | . 2 . Failed 1 | . 1 . Catastrophic . | . . . Database Lockouts . | . . . Manual . | . . . Terminals 3 | . 3 . Fabricators . | . . . Repair Stations . | . . . Recycling Units . | . . . Scanalyzers . | . . . Garrison Access . | . . . Terminal Hacks 2 | . 2 . Reinforcement Status 1 | . 1 . Zone Layout 1 | . 1 . Fabricator Hacks . | . . . Repair Station Hacks . | . . . Recycling Unit Hacks . | . . . Scanalyzer . | . . . Garrison Access Hacks . | . . . Unauthorized Hacks . | . . . Terminals . | . . . Fabricators . | . . . Repair Stations . | . . . Recycling Units . | . . . Scanalyzers . | . . . Garrison Access . | . . . Data Cores Recovered . | . . . Used . | . . . Hacking Detections 1 | . 1 . Full Trace Events . | . . . Feedback Events . | . . . Feedback Blocked . | . . . Robot Schematics Acquired . | . . . Robots Built . | . . . Authchips . | . . . Time . | . . . Total Robot Build Rating . | . . . Part Schematics Acquired . | . . . Parts Built . | . . . Authchips . | . . . Time . | . . . Total Part Build Rating . | . . . Part Studies Acquired . | . . . Parts Repaired . | . . . Time . | . . . Parts Recycled . | . . . Recycled Matter . | . . . Retrieved Matter . | . . . Retrieved Components . | . . . Parts Scanalyzed . | . . . Part Schematics Acquired . | . . . Parts Damaged . | . . . Bothacking | -11 -10 -9 ------------ Run | Yrd Mat Mat Used RIF Installer . | . . . Robots Hacked . | . . . Non-combat . | . . . Combat . | . . . Robot Hacks Applied . | . . . Relay Couplers Released . | . . . Fabnet Peak Effective % . | . . . Robots Rewired . | . . . Allies Hacked . | . . . Hacks Repelled . | . . . Allies | -11 -10 -9 -------- Run | Yrd Mat Mat Total Allies . | . . . Largest Group . | . . . Highest-Rated Group . | . . . Highest-Rated Ally . | . . . Total Orders . | . . . Ally Attacks . | . . . Total Damage . | . . . Kills . | . . . Allies Corrupted . | . . . Allies Melted . | . . . Intel | -11 -10 -9 ------- Run | Yrd Mat Mat Active Infowar (turns) . | . . . Robot Analysis Total . | . . . Derelict Logs Recovered . | . . . Drone Launches . | . . . Drone Recoveries . | . . . Exploration | -11 -10 -9 ------------- Run | Yrd Mat Mat Turns Passed 817 | 54 497 266 Spaces Moved 389 | 50 247 92 Core 22 | 13 . 9 Treads 181 | . 98 83 Legs . | . . . Wheels 186 | 37 149 . Hover . | . . . Flight . | . . . Fastest Speed 50 | 50 80 160 Average Speed 129 | 72 118 191 Slowest Speed 650 | 80 160 650 Overloaded Moves . | . . . Propulsion Burnouts . | . . . Robots Hopped . | . . . Potential Cave-ins . | . . . Cave-ins Triggered . | . . . Exploration Rate (%) 17 | 4 32 15 Regions Visited 2 Branch Regions . Pre-discovered Areas . | . . . Known Exits Taken . | . . . Unknown Exits Taken 2 | 1 1 . Scrap Searched . | . . . Spaces Dug . | . . . Terrain Destroyed 9 | . . 9 Melee . | . . . Projectile . | . . . AOE 9 | . . 9 Terrain Rammed . | . . . Walls Destroyed . | . . . Machines Disabled . | . . . Actions | -11 -10 -9 --------- Run | Yrd Mat Mat Total 587 | 65 371 151 Wait 12 | . 12 . Move 387 | 49 246 92 Hop . | . . . Pick Up 22 | 8 11 3 Fast Attach 5 | 4 1 . Attach 20 | 2 6 12 Detach 2 | 1 1 . Swap 5 | 1 4 . Drop 10 | . 5 5 Fire 124 | . 85 39 Melee . | . . . Ram . | . . . Kick . | . . . Crush . | . . . Escape Stasis . | . . . Rewire . | . . . Trap . | . . . Miscellaneous . | . . . Route ------- -11/Scrapyard -10/Materials -9/Materials History --------- Turn | Location | Event 3 | -11/Scrapyard | Discovered new exit (range 16) 55 | -11/Scrapyard | Entered Materials 314 | -10/Materials | Build established: Mutant 418 | -10/Materials | Core integrity fell below 50% 455 | -10/Materials | Lost 4 parts (2n2w) 462 | -10/Materials | Core integrity fell below 20% 544 | -10/Materials | Discovered new exit (range 6) 552 | -10/Materials | Entered another Materials area 552 | -9/Materials | Evolved 2 slots: Power x1, Utility x1 812 | -9/Materials | Core integrity fell below 50% 816 | -9/Materials | Core integrity fell below 20% 818 | -9/Materials | Destroyed by G-34 Mercenary with Small Laser Last Messages --------------- 00802_ R-06 Scavenger collects Heat Sink. 00802_ U-05 Engineer lays Concrete. 00803_ R-06 Scavenger collects Wheel. 00803_ U-05 Engineer lays Concrete. 00804_ R-06 Scavenger collects Ion Engine. 00805_ U-05 Engineer lays Concrete. 00808_ R-06 Scavenger collects Rnf. Ion Engine. 00808_ R-06 Scavenger collects Heat Sink. 00809_ Med. Armor Plating destroyed. 00809_ U-05 Engineer builds a Wall. 00811_ U-05 Engineer lays Concrete. 00811_ R-06 Scavenger collects Aluminum Leg. 00812_ U-05 Engineer lays Concrete. 00813_ System corrupted: Matter fused (-10). 00813_ U-05 Engineer lays Concrete. 00813_ U-05 Engineer builds a Wall. 00814_ U-05 Engineer lays Concrete. 00816_ K-01 Serf collects debris. 00816_ U-05 Engineer builds a Door. 00817_ U-05 Engineer lays Concrete. Map ----- +----------------------------------------------------+ | ?????????????????????????????????????????????????? | | ?????????????????????????????????????????????????? | | ?????????????????????????????????????????????????? | | ?????????????????????????????????????????????????? | | ?????????????????????????????????????????????????? | | ?????????????????????????????????????????????????? | | ?????????????????????????????????????????????????? | | ?????????????????????????????????????????????????? | | ?????????????????????????????????????????????????? | | ?????????????????????????????????????????????????? | | ?????????????????????????????????????????????????? | | ????????????????? ??????????????????????????????? | | ????????????????? ??????????????????????????????? | | ???????????????? ??????????????????????????????? | | ???????????????? ??????????????????????????????? | | ??????????????###+#########??????????????????????? | | ?????????????? #??????????????????????? | | ???????????????#g ##?????????????????????? | | ???????????????# g ##????????????????????? | | ??????########?# !!! ""#????????????????????? | | ??????# ?# g T"#????????????????????? | | ??????# # !! ""#????????????????????? | | ??????# #k #############?????????? | | ??????# # u ????????? | | ??????# r g ????????? | | ??????# u % @ ????????? | | ????### % +r Y ########???????????????? | | # + % r r% #??????????????????????? | | # ### # """ #??????????????????????? | | ??????####### #u """ #??????????????????????? | | ????????????###r w """ #####??????????????????? | | ??????????????# """ #??????????????????? | | ??????????????# #??????????????????? | | ??????????????# #??????????????????? | | ??????????????# ###+### #??????????????????? | | ??????????????######## # #????????????????### | | ?????????????????????# # #????????????????# | | ?????????????????????# # ################?#"" | | ?????????????????????#!! # #?#"" | | ?????????????????????#!! # #?#"" | | ?????????????????????#!! # == #?#"" | | ?????????????????????# ####### == #?#"" | | ?????????????????????# #?????# == #?#"" | | ?????????????????????# #?????# #?#"" | | ?????????????????????######?????# #?# | | ????????????????????????????????# """ ##### | | ????????????????????????????????# """ | | ????????????????????????????????# """ ] | | ????????????????????????????????# | | ????????????????????????????????#/ | +----------------------------------------------------+ Best States ------------- Heat Dissipation 28 Energy Generation 21 Energy Capacity 325 Matter Stores 300 Matter Capacity 300 Sight Range 16 Terrain Scan Density 10 Armor Coverage 225 Evasion (%) 50 Recoil Reduction 2 Item Schematics ----------------- None Robot Schematics ------------------ None Fabricated ------------ Nothing Repaired ---------- Nothing Studied --------- None Alien Tech Used ----------------- None Achievements -------------- None Challenges ------------ None Game ------ Seed SalvageMultinovaBank Manual? 0 Play Time 00:11:46 Cumulative 15.9 hours Start 2025.10.25 @ 08:30:12 End 2025.10.25 @ 08:39:09 Sessions 1 Manual Loads 0 Difficulty Rogue Special Mode None Game No. 51 Rogue 51 Adventurer 0 Explorer 0 Win Type - Total 0 Types 0/0/0/0/0/0/0/0/0/0 Lore% 9 Gallery% 19 Achievement% 15 Wizard Run 0 Options --------- Layout 1 ASCII 0 Keyboard 0 Movement Mouse Keybinds 0 Fullscreen 1 Font 32/SmallcapsGlow Map View 50x35 Zoom Use 0% Tactical HUD 1 Map Filters NONE Filters NONE Steam 1 RUN: 1f6909eb-70e2-45d0-855a-ac9906479cb2